[Event "*** Titled Tuesday Blitz"]
[Site "Chess.com"]
[Date "2021.02.02"]
[Round "9"]
[White "Rogarcia1"]
[Black "JQuiroga18"]
[Result "1-0"]
[WhiteElo "2299"]
[BlackElo "2424"]
[TimeControl "180+1"]
[EndTime "11:46:00 PST"]
[Termination "Rogarcia1 won by resignation"]

1. e4 {[%clk 0:03:00.9]} 1... e5 {[%clk 0:02:58.8]} 2. Nf3 {[%clk 0:03:00.1]}
2... Nc6 {[%clk 0:02:55]} 3. Bb5 {[%clk 0:02:59.8]} 3... a6 {[%clk 0:02:51]} 4.
Ba4 {[%clk 0:02:59.4]} 4... Nf6 {[%clk 0:02:51.4]} 5. O-O {[%clk 0:02:58.6]}
5... d6 {[%clk 0:02:51.8]} 6. d3 {[%clk 0:02:56.7]} 6... Bd7 {[%clk 0:02:51.9]}
7. c4 {[%clk 0:02:55.2]} 7... g6 {[%clk 0:02:51.8]} 8. Nc3 {[%clk 0:02:55.1]}
8... Bg7 {[%clk 0:02:52.2]} 9. h3 {[%clk 0:02:54.1]} 9... O-O {[%clk 0:02:52.2]}
10. Be3 {[%clk 0:02:53.4]} 10... Ne7 {[%clk 0:02:42.6]} 11. Bxd7 {[%clk
0:02:47.9]} 11... Nxd7 {[%clk 0:02:34]} 12. Nd5 {[%clk 0:02:43.6]} 12... c6
{[%clk 0:02:32.5]} 13. Nc3 {[%clk 0:02:38.5]} 13... f5 {[%clk 0:02:25]} 14. Qb3
{[%clk 0:02:29.9]} 14... f4 {[%clk 0:02:13.3]} 15. c5+ {[%clk 0:02:19.8]} 15...
d5 {[%clk 0:02:03.2]} 16. exd5 {[%clk 0:02:09.6]} 16... Kh8 {[%clk 0:02:01.4]}
17. Bd2 {[%clk 0:01:58.2]} 17... Nxc5 {[%clk 0:01:58.3]} 18. Qc4 {[%clk
0:01:56.8]} 18... Qd6 {[%clk 0:01:51.2]} 19. b4 {[%clk 0:01:49.5]} 19... Nd7
{[%clk 0:01:45]} 20. dxc6 {[%clk 0:01:43.4]} 20... Qxc6 {[%clk 0:01:40.5]} 21.
Ng5 {[%clk 0:01:28.2]} 21... h6 {[%clk 0:01:14.6]} 22. Ne6 {[%clk 0:01:18.7]}
22... Rfc8 {[%clk 0:01:14.1]} 23. Nxg7 {[%clk 0:01:12.2]} 23... Kxg7 {[%clk
0:01:11.6]} 24. Qxc6 {[%clk 0:01:04.8]} 24... Rxc6 {[%clk 0:01:05.8]} 25. Ne4
{[%clk 0:01:04.9]} 25... Rac8 {[%clk 0:00:58]} 26. d4 {[%clk 0:01:03.5]} 26...
exd4 {[%clk 0:00:54.9]} 27. Bxf4 {[%clk 0:01:03.5]} 27... Nd5 {[%clk 0:00:54.2]}
28. Bd2 {[%clk 0:00:58.7]} 28... Rc2 {[%clk 0:00:53.3]} 29. Rfd1 {[%clk
0:00:48.2]} 29... Ne5 {[%clk 0:00:49.7]} 30. Be1 {[%clk 0:00:40.1]} 30... Nc3
{[%clk 0:00:33.6]} 31. Bxc3 {[%clk 0:00:31.2]} 31... dxc3 {[%clk 0:00:33.7]} 32.
Rd5 {[%clk 0:00:27.3]} 32... Re8 {[%clk 0:00:25.6]} 33. Rad1 {[%clk 0:00:22.7]}
33... Rxa2 {[%clk 0:00:23.8]} 34. Nxc3 {[%clk 0:00:22.3]} 34... Rc2 {[%clk
0:00:22.9]} 35. Ne4 {[%clk 0:00:22]} 35... Rc4 {[%clk 0:00:22.4]} 36. Nd6 {[%clk
0:00:21.8]} 36... Rec8 {[%clk 0:00:16]} 37. Nxc8 {[%clk 0:00:21.5]} 37... Rxc8
{[%clk 0:00:14.6]} 38. Rxe5 {[%clk 0:00:21.7]} 1-0

[Event "*** Titled Tuesday Blitz"]
[Site "Chess.com"]
[Date "2021.02.02"]
[Round "9"]
[White "Bastiandash"]
[Black "SlavenPastar"]
[Result "1-0"]
[WhiteElo "2494"]
[BlackElo "2622"]
[TimeControl "180+1"]
[EndTime "11:46:03 PST"]
[Termination "Bastiandash won by resignation"]

1. e4 {[%clk 0:03:00.9]} 1... b6 {[%clk 0:02:57.5]} 2. Nc3 {[%clk 0:03:00.2]}
2... Bb7 {[%clk 0:02:57.7]} 3. d4 {[%clk 0:03:00.7]} 3... e6 {[%clk 0:02:58.2]}
4. f3 {[%clk 0:02:59.8]} 4... c5 {[%clk 0:02:52.4]} 5. Be3 {[%clk 0:02:59]} 5...
cxd4 {[%clk 0:02:51.7]} 6. Bxd4 {[%clk 0:02:59.9]} 6... Nc6 {[%clk 0:02:50.5]}
7. Be3 {[%clk 0:02:56]} 7... Bb4 {[%clk 0:02:48.1]} 8. Qd2 {[%clk 0:02:40.6]}
8... Rc8 {[%clk 0:02:42.3]} 9. Nge2 {[%clk 0:02:33.8]} 9... Nf6 {[%clk
0:02:24.7]} 10. a3 {[%clk 0:02:27.3]} 10... Be7 {[%clk 0:02:19.3]} 11. Nd4
{[%clk 0:02:17.9]} 11... Ne5 {[%clk 0:02:12.1]} 12. Ndb5 {[%clk 0:02:11.9]}
12... O-O {[%clk 0:02:02.9]} 13. Nxa7 {[%clk 0:02:09.2]} 13... Nc4 {[%clk
0:01:55]} 14. Bxc4 {[%clk 0:02:06.4]} 14... Rxc4 {[%clk 0:01:55.9]} 15. Nab5
{[%clk 0:02:01.6]} 15... d5 {[%clk 0:01:52.3]} 16. exd5 {[%clk 0:01:40.6]} 16...
Nxd5 {[%clk 0:01:47.2]} 17. Nxd5 {[%clk 0:01:36.7]} 17... Bxd5 {[%clk
0:01:38.5]} 18. O-O {[%clk 0:01:17.4]} 18... Rc8 {[%clk 0:01:24.8]} 19. b3
{[%clk 0:01:07]} 19... Qe8 {[%clk 0:00:53.4]} 20. c4 {[%clk 0:01:06]} 20... Bc6
{[%clk 0:00:41.9]} 21. Nd6 {[%clk 0:00:48.8]} 21... Rd8 {[%clk 0:00:39]} 22.
Nxe8 {[%clk 0:00:45.1]} 22... Rxd2 {[%clk 0:00:35.5]} 23. Bxd2 {[%clk
0:00:44.5]} 23... Rxe8 {[%clk 0:00:35.9]} 24. Be3 {[%clk 0:00:44.4]} 24... Rb8
{[%clk 0:00:33.9]} 25. Rfd1 {[%clk 0:00:43.3]} 25... Kf8 {[%clk 0:00:32.9]} 26.
b4 {[%clk 0:00:43]} 26... Ke8 {[%clk 0:00:31.6]} 27. Rac1 {[%clk 0:00:41.6]}
27... f6 {[%clk 0:00:27.7]} 28. Bf4 {[%clk 0:00:34.9]} 28... e5 {[%clk
0:00:26.9]} 29. Be3 {[%clk 0:00:35.1]} 29... f5 {[%clk 0:00:19]} 30. Re1 {[%clk
0:00:30.8]} 30... Kf7 {[%clk 0:00:15.9]} 31. b5 {[%clk 0:00:25.1]} 31... Bd7
{[%clk 0:00:13.5]} 32. c5 {[%clk 0:00:25.5]} 32... bxc5 {[%clk 0:00:12]} 33.
Bxc5 {[%clk 0:00:26.4]} 33... Bxc5+ {[%clk 0:00:08.1]} 34. Rxc5 {[%clk
0:00:27.3]} 34... Bxb5 {[%clk 0:00:07.2]} 35. Rb1 {[%clk 0:00:23]} 1-0

[Event "*** Titled Tuesday Blitz"]
[Site "Chess.com"]
[Date "2021.02.02"]
[Round "9"]
[White "IriBu"]
[Black "ljuks68"]
[Result "1-0"]
[WhiteElo "2549"]
[BlackElo "2386"]
[TimeControl "180+1"]
[EndTime "11:46:03 PST"]
[Termination "IriBu won on time"]

1. e4 {[%clk 0:03:00.9]} 1... e6 {[%clk 0:02:59.8]} 2. d4 {[%clk 0:03:00.5]}
2... d5 {[%clk 0:03:00.3]} 3. Nc3 {[%clk 0:02:58.4]} 3... Bb4 {[%clk 0:02:59.8]}
4. Ne2 {[%clk 0:02:57.9]} 4... Nc6 {[%clk 0:02:59.1]} 5. a3 {[%clk 0:02:51.2]}
5... Ba5 {[%clk 0:02:56.1]} 6. e5 {[%clk 0:02:40.7]} 6... f6 {[%clk 0:02:54.9]}
7. exf6 {[%clk 0:02:38.2]} 7... Nxf6 {[%clk 0:02:52.8]} 8. Ng3 {[%clk
0:02:37.8]} 8... O-O {[%clk 0:02:35.5]} 9. Bb5 {[%clk 0:02:36.5]} 9... Bb6
{[%clk 0:02:24.9]} 10. Bxc6 {[%clk 0:02:34.5]} 10... bxc6 {[%clk 0:02:25.1]} 11.
Be3 {[%clk 0:02:33.3]} 11... Ba6 {[%clk 0:02:22]} 12. Nce2 {[%clk 0:02:31.5]}
12... e5 {[%clk 0:02:01.9]} 13. c3 {[%clk 0:02:28.5]} 13... Ng4 {[%clk
0:01:54.3]} 14. O-O {[%clk 0:02:24.7]} 14... Qh4 {[%clk 0:01:43]} 15. h3 {[%clk
0:02:15.8]} 15... Nxe3 {[%clk 0:01:31.1]} 16. fxe3 {[%clk 0:02:16.7]} 16...
Rxf1+ {[%clk 0:01:26.9]} 17. Qxf1 {[%clk 0:02:16.3]} 17... Rf8 {[%clk
0:01:21.9]} 18. Qe1 {[%clk 0:02:16.6]} 18... c5 {[%clk 0:01:15.2]} 19. dxe5
{[%clk 0:02:04.3]} 19... Qe7 {[%clk 0:00:57.9]} 20. Nf1 {[%clk 0:01:41.1]} 20...
Qxe5 {[%clk 0:00:55.9]} 21. Qd2 {[%clk 0:01:41.2]} 21... c6 {[%clk 0:00:52.9]}
22. Re1 {[%clk 0:01:36.3]} 22... Qf6 {[%clk 0:00:48.1]} 23. Neg3 {[%clk
0:01:28.7]} 23... Re8 {[%clk 0:00:24]} 24. Kh1 {[%clk 0:01:26.1]} 24... Rf8
{[%clk 0:00:17.3]} 25. e4 {[%clk 0:01:20.3]} 25... Bc7 {[%clk 0:00:13.4]} 26.
exd5 {[%clk 0:01:14.9]} 26... Bxf1 {[%clk 0:00:12.7]} 27. Ne4 {[%clk 0:00:53.1]}
27... Qe5 {[%clk 0:00:09.3]} 28. d6 {[%clk 0:00:53]} 28... Bd8 {[%clk
0:00:05.7]} 29. Qe3 {[%clk 0:00:45.9]} 29... Bc4 {[%clk 0:00:04.8]} 30. b4
{[%clk 0:00:37.4]} 30... Bd5 {[%clk 0:00:04.7]} 31. bxc5 {[%clk 0:00:36.3]}
31... Bxe4 {[%clk 0:00:04.5]} 32. Qxe4 {[%clk 0:00:36.9]} 32... Qxe4 {[%clk
0:00:04]} 33. Rxe4 {[%clk 0:00:36.6]} 33... Kf7 {[%clk 0:00:04.6]} 34. Ra4
{[%clk 0:00:35.2]} 34... a5 {[%clk 0:00:04.6]} 35. Re4 {[%clk 0:00:33.5]} 35...
Re8 {[%clk 0:00:04.3]} 36. Rf4+ {[%clk 0:00:33.3]} 36... Kg6 {[%clk 0:00:03.5]}
37. Rg4+ {[%clk 0:00:30.9]} 37... Kf6 {[%clk 0:00:02]} 38. Kh2 {[%clk
0:00:28.9]} 1-0

[Event "*** Titled Tuesday Blitz"]
[Site "Chess.com"]
[Date "2021.02.02"]
[Round "9"]
[White "Gabrielian_Artur"]
[Black "OhanyanEminChess"]
[Result "1-0"]
[WhiteElo "2788"]
[BlackElo "2650"]
[TimeControl "180+1"]
[EndTime "11:46:07 PST"]
[Termination "Gabrielian_Artur won by resignation"]

1. c4 {[%clk 0:03:00.9]} 1... Nf6 {[%clk 0:02:56.4]} 2. Nc3 {[%clk 0:03:00.5]}
2... c5 {[%clk 0:02:56.7]} 3. g3 {[%clk 0:02:59.4]} 3... Nc6 {[%clk 0:02:55.4]}
4. Bg2 {[%clk 0:02:59.2]} 4... g6 {[%clk 0:02:56.1]} 5. e4 {[%clk 0:02:59]} 5...
d6 {[%clk 0:02:56]} 6. d3 {[%clk 0:02:59]} 6... Bg7 {[%clk 0:02:56.6]} 7. Nge2
{[%clk 0:02:58.8]} 7... O-O {[%clk 0:02:57.3]} 8. O-O {[%clk 0:02:58.6]} 8...
Ne8 {[%clk 0:02:55.7]} 9. Be3 {[%clk 0:02:56.3]} 9... Nc7 {[%clk 0:02:55.8]} 10.
Qd2 {[%clk 0:02:55.4]} 10... Ne6 {[%clk 0:02:54.8]} 11. Bh6 {[%clk 0:02:55.3]}
11... Ncd4 {[%clk 0:02:53.8]} 12. Bxg7 {[%clk 0:02:55.3]} 12... Kxg7 {[%clk
0:02:53.9]} 13. f4 {[%clk 0:02:55.2]} 13... Nxe2+ {[%clk 0:02:50.6]} 14. Nxe2
{[%clk 0:02:55]} 14... Nd4 {[%clk 0:02:51.5]} 15. Nxd4 {[%clk 0:02:53.9]} 15...
cxd4 {[%clk 0:02:52.4]} 16. f5 {[%clk 0:02:54.4]} 16... f6 {[%clk 0:02:51.6]}
17. h4 {[%clk 0:02:48.8]} 17... Qc7 {[%clk 0:02:49.1]} 18. g4 {[%clk 0:02:43.4]}
18... Qc5 {[%clk 0:02:42.2]} 19. Rf3 {[%clk 0:02:34.8]} 19... Qe5 {[%clk
0:02:38.4]} 20. Raf1 {[%clk 0:02:31.5]} 20... Bd7 {[%clk 0:02:34.1]} 21. Bh3
{[%clk 0:02:15]} 21... gxf5 {[%clk 0:01:41.4]} 22. g5 {[%clk 0:01:52.1]} 22...
fxg5 {[%clk 0:01:37.1]} 23. Bxf5 {[%clk 0:01:21.8]} 23... Bxf5 {[%clk
0:01:19.2]} 24. Rxf5 {[%clk 0:01:21.6]} 24... Qg3+ {[%clk 0:01:17.3]} 25. Qg2
{[%clk 0:01:20.8]} 25... Qxg2+ {[%clk 0:01:09.8]} 26. Kxg2 {[%clk 0:01:20.5]}
26... Rxf5 {[%clk 0:01:06.5]} 27. Rxf5 {[%clk 0:01:20.3]} 27... gxh4 {[%clk
0:01:05]} 28. Rd5 {[%clk 0:01:16.2]} 28... Kf6 {[%clk 0:00:56.2]} 29. Rxd4
{[%clk 0:00:55.1]} 29... Rg8+ {[%clk 0:00:54.7]} 30. Kh3 {[%clk 0:00:49.4]}
30... Rg3+ {[%clk 0:00:54]} 31. Kxh4 {[%clk 0:00:48.7]} 31... Rg2 {[%clk
0:00:53.8]} 32. Rd5 {[%clk 0:00:35]} 32... Rxb2 {[%clk 0:00:51.7]} 33. a4 {[%clk
0:00:35.1]} 33... b6 {[%clk 0:00:48]} 34. Kg4 {[%clk 0:00:32.4]} 34... Ra2
{[%clk 0:00:47.3]} 35. Rh5 {[%clk 0:00:23.7]} 35... Rxa4 {[%clk 0:00:44.6]} 36.
Rxh7 {[%clk 0:00:23.4]} 36... Ra3 {[%clk 0:00:45.3]} 37. Rh3 {[%clk 0:00:22]}
37... Ke5 {[%clk 0:00:44.9]} 38. d4+ {[%clk 0:00:21.9]} 38... Kxd4 {[%clk
0:00:42.5]} 39. Rxa3 {[%clk 0:00:21.2]} 39... a5 {[%clk 0:00:43.4]} 40. Rb3
{[%clk 0:00:20.5]} 40... Kc5 {[%clk 0:00:33.1]} 41. Kf5 {[%clk 0:00:18.8]} 41...
a4 {[%clk 0:00:32.6]} 42. Ra3 {[%clk 0:00:16.2]} 42... Kb4 {[%clk 0:00:33]} 43.
Ra1 {[%clk 0:00:16.5]} 1-0

[Event "*** Titled Tuesday Blitz"]
[Site "Chess.com"]
[Date "2021.02.02"]
[Round "9"]
[White "Chopper1905"]
[Black "dretch"]
[Result "1-0"]
[WhiteElo "2946"]
[BlackElo "2852"]
[TimeControl "180+1"]
[EndTime "11:46:09 PST"]
[Termination "Chopper1905 won by resignation"]

1. d4 {[%clk 0:03:00.9]} 1... d5 {[%clk 0:03:00]} 2. c4 {[%clk 0:03:01]} 2... c6
{[%clk 0:03:00]} 3. cxd5 {[%clk 0:03:01.3]} 3... cxd5 {[%clk 0:03:00.9]} 4. Bf4
{[%clk 0:03:01.7]} 4... Nc6 {[%clk 0:02:59]} 5. e3 {[%clk 0:03:01.9]} 5... Nf6
{[%clk 0:02:58.3]} 6. Nc3 {[%clk 0:03:02.1]} 6... Bf5 {[%clk 0:02:58.2]} 7. Nf3
{[%clk 0:03:02.3]} 7... e6 {[%clk 0:02:55.8]} 8. Qb3 {[%clk 0:03:02.5]} 8... Bb4
{[%clk 0:02:55.5]} 9. Ne5 {[%clk 0:03:02.7]} 9... Qb6 {[%clk 0:02:06.8]} 10.
Nxc6 {[%clk 0:03:01.8]} 10... bxc6 {[%clk 0:02:03.3]} 11. Be2 {[%clk 0:03:02.2]}
11... Ne4 {[%clk 0:01:56.9]} 12. f3 {[%clk 0:03:02]} 12... Nxc3 {[%clk
0:01:44.2]} 13. bxc3 {[%clk 0:03:01.7]} 13... Be7 {[%clk 0:01:44.6]} 14. Kf2
{[%clk 0:02:49.4]} 14... O-O {[%clk 0:01:42.8]} 15. Rhc1 {[%clk 0:02:17]} 15...
c5 {[%clk 0:01:32.9]} 16. Qxb6 {[%clk 0:02:12.3]} 16... axb6 {[%clk 0:01:32.3]}
17. a4 {[%clk 0:02:07.9]} 17... Rfc8 {[%clk 0:00:54.1]} 18. Bb5 {[%clk
0:02:00.3]} 18... g5 {[%clk 0:00:51.1]} 19. Bg3 {[%clk 0:01:55.5]} 19... h5
{[%clk 0:00:50.6]} 20. h3 {[%clk 0:01:53.9]} 20... f6 {[%clk 0:00:45.2]} 21. Bd7
{[%clk 0:01:43.8]} 21... Rd8 {[%clk 0:00:42.3]} 22. Bc6 {[%clk 0:01:43.4]} 22...
Ra7 {[%clk 0:00:38.7]} 23. e4 {[%clk 0:01:30.6]} 23... Bg6 {[%clk 0:00:17.2]}
24. Ke3 {[%clk 0:01:24.1]} 24... cxd4+ {[%clk 0:00:13]} 25. cxd4 {[%clk
0:01:24]} 25... dxe4 {[%clk 0:00:12.7]} 26. fxe4 {[%clk 0:01:24.9]} 26... f5
{[%clk 0:00:10.6]} 27. Be5 {[%clk 0:01:14.7]} 27... fxe4 {[%clk 0:00:09.7]} 28.
Rab1 {[%clk 0:01:10.4]} 28... Be8 {[%clk 0:00:09.9]} 29. Bxe8 {[%clk 0:00:59.8]}
29... Rxe8 {[%clk 0:00:10.8]} 30. Rxb6 {[%clk 0:01:00.3]} 30... Kf7 {[%clk
0:00:09.4]} 31. Rf1+ {[%clk 0:00:58.2]} 31... Kg8 {[%clk 0:00:07.1]} 32. Rxe6
{[%clk 0:00:58.6]} 32... Rxa4 {[%clk 0:00:07.4]} 33. Rg6+ {[%clk 0:00:32.6]}
33... Kh7 {[%clk 0:00:07]} 34. Rg7+ {[%clk 0:00:33]} 34... Kh6 {[%clk
0:00:07.5]} 35. Rff7 {[%clk 0:00:33.7]} 35... Bf8 {[%clk 0:00:06.2]} 36. Rg8
{[%clk 0:00:32.6]} 36... Raa8 {[%clk 0:00:05.7]} 37. Rh8+ {[%clk 0:00:24.5]}
37... Kg6 {[%clk 0:00:05.5]} 38. Rf6+ {[%clk 0:00:24.7]} 38... Kg7 {[%clk
0:00:05.8]} 39. Rfxf8+ {[%clk 0:00:25]} 39... Rxe5 {[%clk 0:00:05.2]} 40. Rxa8
{[%clk 0:00:24.5]} 1-0

[Event "*** Titled Tuesday Blitz"]
[Site "Chess.com"]
[Date "2021.02.02"]
[Round "9"]
[White "chessmadara"]
[Black "oogee"]
[Result "0-1"]
[WhiteElo "2154"]
[BlackElo "2347"]
[TimeControl "180+1"]
[EndTime "11:46:10 PST"]
[Termination "oogee won on time"]

1. e4 {[%clk 0:03:00.9]} 1... c5 {[%clk 0:02:59]} 2. Nf3 {[%clk 0:03:00.2]} 2...
d6 {[%clk 0:02:59.2]} 3. d4 {[%clk 0:03:00.2]} 3... cxd4 {[%clk 0:02:59.9]} 4.
Nxd4 {[%clk 0:03:01]} 4... Nf6 {[%clk 0:03:00.3]} 5. Nc3 {[%clk 0:03:00.9]} 5...
g6 {[%clk 0:02:59.4]} 6. Bc4 {[%clk 0:02:51.6]} 6... Bg7 {[%clk 0:02:52.8]} 7.
f3 {[%clk 0:02:45.5]} 7... Nc6 {[%clk 0:02:46.6]} 8. Be3 {[%clk 0:02:43]} 8...
Qb6 {[%clk 0:02:46.6]} 9. Qd2 {[%clk 0:02:12.3]} 9... Nxe4 {[%clk 0:02:44.9]}
10. Nxe4 {[%clk 0:02:10.7]} 10... Bxd4 {[%clk 0:02:26.2]} 11. Bxd4 {[%clk
0:02:09.4]} 11... Qxd4 {[%clk 0:02:26.5]} 12. Qe2 {[%clk 0:02:03]} 12... O-O
{[%clk 0:02:16.9]} 13. c3 {[%clk 0:02:02.7]} 13... Qb6 {[%clk 0:02:13.1]} 14.
Rd1 {[%clk 0:02:01.3]} 14... Ne5 {[%clk 0:01:54.2]} 15. Bb3 {[%clk 0:02:00.2]}
15... a5 {[%clk 0:01:47.4]} 16. h4 {[%clk 0:01:13.8]} 16... a4 {[%clk
0:01:42.2]} 17. Bd5 {[%clk 0:01:13.7]} 17... h5 {[%clk 0:01:31.7]} 18. Ng5
{[%clk 0:01:08.7]} 18... Qc5 {[%clk 0:01:03.2]} 19. Qd2 {[%clk 0:00:37.3]} 19...
Kg7 {[%clk 0:00:36.2]} 20. Ne4 {[%clk 0:00:35.1]} 20... Qb5 {[%clk 0:00:31.7]}
21. Qd4 {[%clk 0:00:25.5]} 21... f6 {[%clk 0:00:28.1]} 22. Qd2 {[%clk
0:00:16.7]} 22... Ra6 {[%clk 0:00:25.5]} 23. Ng3 {[%clk 0:00:14.2]} 23... e6
{[%clk 0:00:25]} 24. Be4 {[%clk 0:00:14.3]} 24... d5 {[%clk 0:00:23.5]} 25. Bb1
{[%clk 0:00:13.6]} 25... Rb6 {[%clk 0:00:22.5]} 26. Qc2 {[%clk 0:00:12.7]} 26...
f5 {[%clk 0:00:20.5]} 27. Qe2 {[%clk 0:00:09]} 27... Qxe2+ {[%clk 0:00:20.4]}
28. Kxe2 {[%clk 0:00:09.9]} 28... Rxb2+ {[%clk 0:00:20.8]} 29. Ke1 {[%clk
0:00:08]} 29... b6 {[%clk 0:00:20.5]} 30. Ne2 {[%clk 0:00:07.1]} 30... Ba6
{[%clk 0:00:20.1]} 31. Nd4 {[%clk 0:00:06.8]} 31... Kf6 {[%clk 0:00:19.3]} 32.
a3 {[%clk 0:00:01.2]} 32... Rc8 {[%clk 0:00:15.1]} 33. g3 {[%clk 0:00:01.3]}
33... Rxc3 {[%clk 0:00:14.8]} 34. f4 {[%clk 0:00:01.3]} 34... Re3+ {[%clk
0:00:14.8]} 0-1

[Event "*** Titled Tuesday Blitz"]
[Site "Chess.com"]
[Date "2021.02.02"]
[Round "9"]
[White "zmeeed67"]
[Black "Papullon"]
[Result "1-0"]
[WhiteElo "2364"]
[BlackElo "2131"]
[TimeControl "180+1"]
[EndTime "11:46:10 PST"]
[Termination "zmeeed67 won by resignation"]

1. e4 {[%clk 0:02:49.6]} 1... c5 {[%clk 0:02:59.3]} 2. Nf3 {[%clk 0:02:41.9]}
2... e6 {[%clk 0:02:59.1]} 3. Nc3 {[%clk 0:02:40.2]} 3... a6 {[%clk 0:02:57.9]}
4. g3 {[%clk 0:02:38.4]} 4... d6 {[%clk 0:02:55.6]} 5. Bg2 {[%clk 0:02:38.5]}
5... b6 {[%clk 0:02:54.6]} 6. O-O {[%clk 0:02:38.2]} 6... Bb7 {[%clk 0:02:53.7]}
7. d3 {[%clk 0:02:37.3]} 7... Nd7 {[%clk 0:02:52]} 8. a3 {[%clk 0:02:27.8]} 8...
Qc7 {[%clk 0:02:51.7]} 9. Re1 {[%clk 0:02:22.6]} 9... Be7 {[%clk 0:02:50.6]} 10.
Bf4 {[%clk 0:02:18]} 10... Ne5 {[%clk 0:02:45.3]} 11. Nxe5 {[%clk 0:02:15.3]}
11... dxe5 {[%clk 0:02:44.4]} 12. Be3 {[%clk 0:02:15.7]} 12... Nf6 {[%clk
0:02:40]} 13. h3 {[%clk 0:02:09]} 13... Rd8 {[%clk 0:02:38.8]} 14. b3 {[%clk
0:01:48.5]} 14... b5 {[%clk 0:02:36.4]} 15. Qe2 {[%clk 0:01:44.9]} 15... O-O
{[%clk 0:02:34.6]} 16. a4 {[%clk 0:01:42.7]} 16... b4 {[%clk 0:02:32.1]} 17. Nb1
{[%clk 0:01:42.6]} 17... Nd7 {[%clk 0:02:25.8]} 18. Nd2 {[%clk 0:01:42.8]} 18...
Nb8 {[%clk 0:02:25.5]} 19. Nc4 {[%clk 0:01:42.3]} 19... Nc6 {[%clk 0:02:25]} 20.
a5 {[%clk 0:01:41]} 20... Nd4 {[%clk 0:02:24.2]} 21. Bxd4 {[%clk 0:01:41.2]}
21... cxd4 {[%clk 0:02:19.7]} 22. Rf1 {[%clk 0:01:40.7]} 22... Bc5 {[%clk
0:02:12.4]} 23. f4 {[%clk 0:01:36.6]} 23... exf4 {[%clk 0:02:11.1]} 24. gxf4
{[%clk 0:01:33.9]} 24... f6 {[%clk 0:01:59.5]} 25. e5 {[%clk 0:01:31.7]} 25...
Bxg2 {[%clk 0:01:55.3]} 26. Qxg2 {[%clk 0:01:30.9]} 26... fxe5 {[%clk
0:01:49.3]} 27. fxe5 {[%clk 0:01:30.8]} 27... Rxf1+ {[%clk 0:01:40]} 28. Rxf1
{[%clk 0:01:31.7]} 28... Rf8 {[%clk 0:01:37.3]} 29. Rxf8+ {[%clk 0:01:16.4]}
29... Bxf8 {[%clk 0:01:36.9]} 30. Qa8 {[%clk 0:01:12.1]} 30... Qf7 {[%clk
0:01:32.2]} 31. Qxa6 {[%clk 0:01:03.9]} 31... Qg6+ {[%clk 0:01:29.1]} 32. Kf2
{[%clk 0:01:02.4]} 32... Qf5+ {[%clk 0:01:28]} 33. Ke1 {[%clk 0:01:01.6]} 33...
Be7 {[%clk 0:01:21.9]} 34. Qa8+ {[%clk 0:00:56.1]} 34... Kf7 {[%clk 0:01:19.2]}
35. Qg2 {[%clk 0:00:56.4]} 35... Bh4+ {[%clk 0:01:14.1]} 36. Ke2 {[%clk
0:00:54.1]} 36... Ke7 {[%clk 0:00:42.6]} 37. Qxg7+ {[%clk 0:00:41.2]} 37... Kd8
{[%clk 0:00:40]} 38. Qg2 {[%clk 0:00:35.4]} 38... Qf4 {[%clk 0:00:33.8]} 39. a6
{[%clk 0:00:17.5]} 39... Qc1 {[%clk 0:00:33]} 40. a7 {[%clk 0:00:17.3]} 40...
Qxc2+ {[%clk 0:00:31.9]} 41. Nd2 {[%clk 0:00:17.7]} 1-0

[Event "*** Titled Tuesday Blitz"]
[Site "Chess.com"]
[Date "2021.02.02"]
[Round "9"]
[White "FMOlexandrProhorov"]
[Black "pavelalexandru07"]
[Result "0-1"]
[WhiteElo "2144"]
[BlackElo "2315"]
[TimeControl "180+1"]
[EndTime "11:46:12 PST"]
[Termination "pavelalexandru07 won by checkmate"]

1. Nf3 {[%clk 0:03:00.9]} 1... c5 {[%clk 0:02:55.8]} 2. e4 {[%clk 0:03:00.3]}
2... d6 {[%clk 0:02:55.3]} 3. c3 {[%clk 0:03:00.8]} 3... Nf6 {[%clk 0:02:54.8]}
4. Be2 {[%clk 0:03:01]} 4... e5 {[%clk 0:02:48.4]} 5. O-O {[%clk 0:02:56.6]}
5... Be7 {[%clk 0:02:34]} 6. Re1 {[%clk 0:02:50.3]} 6... O-O {[%clk 0:02:33.7]}
7. Bf1 {[%clk 0:02:50.7]} 7... a6 {[%clk 0:02:28.4]} 8. h3 {[%clk 0:02:49.3]}
8... b6 {[%clk 0:02:28.3]} 9. d4 {[%clk 0:02:48.4]} 9... Nbd7 {[%clk 0:02:27]}
10. Na3 {[%clk 0:02:44.1]} 10... Bb7 {[%clk 0:02:19.2]} 11. Bd3 {[%clk
0:02:29.5]} 11... Qc7 {[%clk 0:02:16.2]} 12. Bg5 {[%clk 0:02:27.3]} 12... Rfe8
{[%clk 0:02:04.4]} 13. Rc1 {[%clk 0:02:14.6]} 13... Bf8 {[%clk 0:01:43.9]} 14.
Nc2 {[%clk 0:02:02.8]} 14... c4 {[%clk 0:01:26.5]} 15. Bf1 {[%clk 0:01:45.4]}
15... Nxe4 {[%clk 0:01:23.1]} 16. dxe5 {[%clk 0:01:33.4]} 16... dxe5 {[%clk
0:01:20.8]} 17. Ne3 {[%clk 0:01:26.5]} 17... b5 {[%clk 0:01:03.8]} 18. Nd5
{[%clk 0:01:21.9]} 18... Bxd5 {[%clk 0:01:02.3]} 19. Qxd5 {[%clk 0:01:21.3]}
19... Nxg5 {[%clk 0:00:58.2]} 20. Nxg5 {[%clk 0:01:20.4]} 20... Nf6 {[%clk
0:00:56]} 21. Qf3 {[%clk 0:01:19]} 21... Rad8 {[%clk 0:00:43.2]} 22. g3 {[%clk
0:01:09.6]} 22... Bc5 {[%clk 0:00:38]} 23. Ne4 {[%clk 0:00:58.8]} 23... Nxe4
{[%clk 0:00:36.2]} 24. Qxe4 {[%clk 0:00:58.7]} 24... Rd2 {[%clk 0:00:35.8]} 25.
Re2 {[%clk 0:00:58.3]} 25... Red8 {[%clk 0:00:29.8]} 26. Rce1 {[%clk 0:00:52.1]}
26... f6 {[%clk 0:00:24.7]} 27. Bg2 {[%clk 0:00:46.5]} 27... Qb6 {[%clk
0:00:21.9]} 28. Rxd2 {[%clk 0:00:23.5]} 28... Rxd2 {[%clk 0:00:21.2]} 29. Qa8+
{[%clk 0:00:21.6]} 29... Kf7 {[%clk 0:00:21.1]} 30. Rf1 {[%clk 0:00:20.9]} 30...
Rxf2 {[%clk 0:00:18.7]} 31. Kh2 {[%clk 0:00:21]} 31... Rxf1 {[%clk 0:00:18.5]}
32. Bxf1 {[%clk 0:00:21.4]} 32... Bg1+ {[%clk 0:00:18.4]} 33. Kh1 {[%clk
0:00:21.7]} 33... Qf2 {[%clk 0:00:13.8]} 34. Qd5+ {[%clk 0:00:21.7]} 34... Kg6
{[%clk 0:00:13.2]} 35. Bg2 {[%clk 0:00:21.8]} 35... Qe1 {[%clk 0:00:11.1]} 36.
Be4+ {[%clk 0:00:21.5]} 36... Kh6 {[%clk 0:00:10.6]} 37. Qe6 {[%clk 0:00:13.8]}
37... Be3+ {[%clk 0:00:10.5]} 38. Kg2 {[%clk 0:00:13.8]} 38... Qf2+ {[%clk
0:00:10.1]} 39. Kh1 {[%clk 0:00:14.1]} 39... Qg1# {[%clk 0:00:10.6]} 0-1